bitfinex-derivatives/quotes_SOLF0:USTF0_20250626
["timestamp","ask_amount","ask_price","bid_price","bid_amount"]
[1750907969489,6.799,147.0,146.94,19.29303528]
[1750907970197,6.799,147.0,146.95,6.801]
[1750907970601,6.7994,146.99,146.94,12.49143528]
[1750907971099,6.7988,147.01,146.94,12.49143528]
[1750907971794,43.3338,147.07,147.0,5.54943528]
[1750907972101,41.1,147.07,147.0,5.54943528]
[1750907972399,41.1,147.07,146.98,53.44923528]
[1750907972592,41.1,147.07,146.98,46.64943528]
[1750907972986,41.1,147.07,147.0,5.54943528]
[1750907973502,6.7983,147.02,146.97,6.8002]
[1750907974096,6.7986,147.01,146.96,137.35023528]
[1750907975300,6.7986,147.01,146.97,6.8003]
[1750907975495,6.7981,147.02,146.97,6.8003]
[1750907977699,41.1,147.03,146.94,178.59143528]
[1750907977994,46.64943528,147.03,146.94,178.59143528]
[1750907978394,46.64943528,147.03,146.94,53.59143528]
[1750907979007,6.7993,147.0,146.94,60.39283528]
[1750907979905,40.68,146.99,146.93,125.0]
[1750907980207,40.68,146.99,146.91,2.2346]
[1750907980599,6.8002,146.98,146.93,6.802]
[1750907981607,40.68,146.99,146.91,127.2346]
[1750907981807,46.22943528,146.99,146.91,127.2346]
[1750907982504,6.8011,146.96,146.91,134.0376]
[1750907983009,5.54943528,146.97,146.89,40.68]
[1750907983399,5.54943528,146.97,146.87,13.18361453]
[1750907983606,5.54943528,146.95,146.87,7.1054]
[1750907983804,6.8018,146.94,146.88,6.8041]
[1750907984403,6.8023,146.93,146.87,13.9103]
[1750907984604,46.22943528,146.95,146.87,7.1054]
[1750907985813,6.8025,146.93,146.87,13.9102]
[1750907986508,6.8027,146.92,146.87,13.9102]
[1750907986708,46.22943528,146.95,146.87,7.1054]
[1750907987014,40.68,146.95,146.87,13.18361453]
[1750907987416,6.802,146.94,146.89,6.804]
[1750907987914,40.68,146.95,146.89,6.804]
[1750907988511,6.8023,146.93,146.89,6.804]
[1750907990715,6.8023,146.93,146.88,6.8044]
[1750907990917,6.8028,146.92,146.88,6.8044]
[1750907991115,40.68,146.95,146.88,6.8044]
[1750907991316,6.8023,146.93,146.88,6.8044]
[1750907993414,6.8023,146.93,146.89,6.804]
[1750907993612,40.68,146.95,146.87,13.18361453]
[1750907993820,46.22943528,146.95,146.86,46.75821453]
[1750907994115,6.803,146.92,146.87,6.8046]
[1750907994318,46.22943528,146.95,146.86,46.75821453]
[1750907994815,6.8035,146.91,146.86,46.75821453]
[1750907996417,6.8035,146.91,146.86,53.56351453]
[1750907996719,6.8035,146.91,146.86,46.75821453]
[1750907997124,6.8037,146.9,146.86,12.88351453]
[1750907997315,6.8037,146.9,146.87,6.07821453]
[1750907997615,5.54943528,146.93,146.87,6.07821453]
[1750907998317,3.33433494,146.94,146.87,12.88291453]
[1750907998912,6.8031,146.91,146.87,12.88291453]
[1750907999218,6.8031,146.91,146.88,6.07821453]
[1750908000710,6.8031,146.91,146.87,12.88291453]
[1750908001020,6.8037,146.9,146.87,6.07821453]
[1750908001218,3.33433494,146.93,146.87,6.07821453]
[1750908001423,3.33433494,146.91,146.87,6.07821453]
[1750908001615,6.8043,146.89,146.86,6.07821453]
[1750908002421,6.8041,146.89,146.86,6.07821453]
[1750908002620,40.7,146.9,146.85,6.07821453]
[1750908003229,6.8044,146.89,146.85,6.07821453]
[1750908003524,6.8044,146.89,146.84,6.07821453]
[1750908003525,3.33433494,146.89,146.84,6.07821453]
[1750908004018,3.33433494,146.87,146.84,6.07821453]
[1750908004217,3.33433494,146.87,146.82,8.28407212]
[1750908004218,40.7,146.86,146.82,6.07821453]
[1750908004620,6.8063,146.85,146.82,6.07821453]
[1750908004919,6.8063,146.85,146.77,47.9475]
[1750908004920,3.33433494,146.85,146.81,6.07821453]
[1750908005117,3.33433494,146.85,146.8,6.07821453]
[1750908005315,3.33433494,146.85,146.81,6.07821453]
[1750908005528,3.33433494,146.83,146.79,6.07821453]
[1750908006122,6.8076,146.82,146.79,6.07821453]
[1750908006420,6.8076,146.82,146.78,6.07821453]
[1750908007730,6.8079,146.81,146.78,6.07821453]
[1750908008130,6.8079,146.81,146.77,6.07821453]
[1750908008431,46.28495775,146.82,146.77,6.07821453]
[1750908008931,6.8081,146.81,146.77,6.07821453]
[1750908010329,46.28495775,146.82,146.77,6.07821453]
[1750908010635,40.72,146.82,146.77,6.07821453]
[1750908011130,40.72,146.82,146.76,6.07821453]
[1750908011330,6.8081,146.81,146.76,12.88821453]
[1750908012633,40.72,146.82,146.76,12.88821453]
[1750908012634,6.8083,146.8,146.76,6.81]
[1750908012825,6.8083,146.8,146.75,12.88861453]
[1750908014130,6.8083,146.8,146.75,6.8104]
[1750908014831,40.72,146.82,146.75,6.8104]
[1750908015335,6.8086,146.8,146.75,6.8104]
[1750908016531,6.8088,146.79,146.75,6.8104]
[1750908016833,40.72,146.82,146.76,6.81]
[1750908017537,40.72,146.82,146.75,11.64317228]
[1750908017738,40.72,146.82,146.76,6.07821453]
[1750908017935,47.5276,146.82,146.78,6.8091]
[1750908018632,6.8079,146.81,146.77,6.8094]
[1750908020734,6.8083,146.8,146.76,12.88811453]
[1750908020934,40.72,146.82,146.76,6.8099]
[1750908021132,6.8081,146.81,146.76,6.8099]
[1750908021328,40.72,146.82,146.76,6.8099]
[1750908021639,40.72,146.82,146.75,12.88871453]
[1750908021830,6.8082,146.8,146.75,12.88871453]
[1750908022532,6.8082,146.8,146.76,6.81]
[1750908022941,6.8079,146.81,146.76,6.81]
[1750908023242,40.72,146.82,146.76,12.88821453]
[1750908023434,6.8085,146.8,146.76,12.88821453]
[1750908023638,6.8085,146.8,146.76,6.81]
[1750908023841,6.8085,146.8,146.75,12.88861453]
[1750908024338,6.8085,146.8,146.76,6.07821453]
[1750908024540,6.8078,146.81,146.76,6.07821453]
[1750908025642,6.8083,146.8,146.76,6.07821453]
[1750908025841,6.8083,146.8,146.75,6.07821453]
[1750908026335,6.8083,146.8,146.76,6.07821453]
[1750908026536,6.8083,146.8,146.76,12.88811453]
[1750908029138,6.809,146.79,146.75,6.07821453]
[1750908030847,6.809,146.79,146.75,12.88861453]
[1750908033446,6.8092,146.78,146.75,6.07821453]
[1750908034540,6.8092,146.78,146.74,12.88911453]
[1750908035141,6.8088,146.79,146.75,6.8105]
[1750908036351,6.8092,146.78,146.74,12.88911453]
[1750908037244,6.8092,146.78,146.75,6.07821453]
[1750908037551,6.8092,146.78,146.75,12.88871453]
[1750908038351,6.8092,146.78,146.75,6.07821453]
[1750908038646,6.8092,146.78,146.76,6.07821453]
[1750908038840,6.8092,146.78,146.75,6.07821453]
[1750908039042,40.72,146.82,146.75,6.07821453]
[1750908039243,588.24,146.86,146.77,6.07821453]
[1750908039447,2612.56,147.05,146.8,9.41764401]
[1750908039448,3.33942948,146.89,146.8,9.41764401]
[1750908039746,43.25942948,146.91,146.84,3.33942948]
[1750908039951,39.92,146.91,146.85,6.07821453]
[1750908040248,39.92,146.91,146.84,3.33942948]
[1750908040249,6.8054,146.86,146.83,6.07821453]
[1750908040441,6.8054,146.86,146.82,6.07821453]
[1750908040647,6.8054,146.86,146.83,6.07821453]
[1750908040849,6.8054,146.86,146.82,6.07821453]
[1750908041348,6.8059,146.85,146.82,6.07821453]
[1750908041651,6.8059,146.85,146.81,19.78631453]
[1750908042239,6.8064,146.84,146.81,6.07821453]
[1750908043152,6.8068,146.83,146.81,6.07821453]
[1750908045253,3.33942948,146.85,146.81,6.07821453]
[1750908045452,43.25942948,146.87,146.82,6.07821453]
[1750908045753,43.25942948,146.87,146.83,6.07821453]
[1750908045954,6.8062,146.85,146.83,6.07821453]
[1750908046158,43.25942948,146.87,146.83,6.07821453]
[1750908047453,6.8063,146.85,146.83,6.07821453]
[1750908047852,6.8063,146.84,146.83,6.07821453]
[1750908048248,6.8063,146.84,146.82,8.28407212]
[1750908048953,6.806,146.85,146.82,8.28407212]
[1750908049154,6.806,146.85,146.84,6.22520231]
[1750908050759,39.92,146.87,146.82,8.28407212]
[1750908050953,39.92,146.87,146.84,6.22542082]
[1750908051148,46.7253,146.87,146.85,6.22542082]
[1750908052152,2.2798,146.95,146.86,6.22542082]
[1750908052355,39.92,146.93,146.89,6.22542082]
[1750908052546,3.33942948,146.92,146.88,6.22542082]
[1750908052749,6.8032,146.91,146.88,6.22542082]
[1750908053058,3.33942948,146.92,146.89,6.22542082]
[1750908053260,6.8036,146.91,146.88,6.22542082]
[1750908054357,3.33942948,146.92,146.88,6.22542082]
[1750908054562,3.33942948,146.9,146.87,6.22542082]
[1750908054758,3.33942948,146.88,146.84,6.22542082]
[1750908055059,43.25942948,146.88,146.84,6.22542082]
[1750908055248,6.8055,146.86,146.84,6.22542082]
[1750908057063,43.25942948,146.88,146.83,6.22542082]
[1750908057266,3.33942948,146.87,146.84,6.22542082]
[1750908057660,3.33942948,146.87,146.83,6.22542082]
[1750908058151,6.8063,146.85,146.83,6.22542082]
[1750908059663,6.8063,146.84,146.83,6.22542082]
[1750908060257,6.8068,146.83,146.82,6.22542082]
[1750908064563,3.33942948,146.85,146.82,6.22542082]
[1750908065669,6.8064,146.84,146.82,6.22542082]
[1750908066971,6.8068,146.83,146.82,6.22542082]
[1750908070172,6.8073,146.82,146.81,6.22542082]
[1750908070470,3.33942948,146.83,146.79,6.22542082]
[1750908070666,3.33942948,146.81,146.79,6.22542082]
[1750908070866,6.8087,146.79,146.78,6.22542082]
[1750908074671,6.8091,146.78,146.77,6.22542082]
[1750908077677,3.33942948,146.79,146.76,6.22542082]
[1750908077678,6.8096,146.77,146.76,6.22542082]
[1750908077878,39.52,146.8,146.73,13.94723332]
[1750908078075,3.34183513,146.78,146.73,13.94723332]
[1750908078677,3.34111067,146.78,146.73,13.94723332]
[1750908078980,3.34111067,146.76,146.73,5.6631612]
[1750908079172,39.54,146.75,146.73,5.6631612]
[1750908079570,6.811,146.74,146.73,5.6631612]
[1750908081280,39.54,146.75,146.7,8.28407212]
[1750908081487,39.54,146.75,146.71,8.28407212]
[1750908081971,46.3509,146.75,146.71,8.28407212]
[1750908082174,3.34111067,146.74,146.71,8.28407212]
[1750908082370,3.34111067,146.72,146.68,8.28407212]
[1750908083086,3.34111067,146.72,146.66,8.28407212]
[1750908083381,6.8129,146.7,146.66,8.28407212]
[1750908084387,6.8129,146.7,146.65,12.85087212]
[1750908085800,39.54,146.71,146.65,16.19453941]
[1750908086086,39.54,146.71,146.67,8.28407212]
[1750908086286,39.54,146.71,146.68,6.8137]
[1750908086585,39.54,146.71,146.67,8.28407212]
[1750908087090,39.54,146.71,146.68,6.8137]
[1750908087283,39.54,146.71,146.65,137.85087212]
[1750908087486,39.54,146.71,146.65,12.85087212]
[1750908087688,39.54,146.71,146.67,6.8139]
[1750908088281,39.54,146.71,146.65,12.85087212]
[1750908088884,39.54,146.71,146.67,6.814]
[1750908089184,39.54,146.71,146.65,12.85087212]
[1750908090891,39.54,146.71,146.68,6.8134]
[1750908091184,39.54,146.71,146.65,12.85087212]
[1750908092491,39.54,146.71,146.68,6.8135]
[1750908093390,39.54,146.71,146.69,6.8132]
[1750908093987,47.65885624,146.75,146.67,3.34365624]
[1750908094194,42.90365624,146.75,146.67,11.62772836]
[1750908094384,42.90365624,146.75,146.67,8.28407212]
[1750908094684,39.56,146.75,146.68,8.28407212]
[1750908094886,39.56,146.78,146.69,8.28407212]
[1750908095084,39.56,146.77,146.69,3.34365624]
[1750908095390,39.56,146.76,146.69,5.70005624]
[1750908095786,39.56,146.76,146.72,6.8118]
[1750908095989,609.03,146.82,146.73,3.34365624]
[1750908095990,42.90365624,146.81,146.73,3.34365624]
[1750908096689,39.56,146.81,146.73,3.34365624]
[1750908096879,39.56,146.81,146.75,3.34365624]
[1750908097788,39.56,146.81,146.74,3.33928172]
[1750908097991,6.8083,146.8,146.75,6.8105]
[1750908098189,3.33928172,146.8,146.72,16.31585384]
[1750908098693,39.56,146.81,146.72,12.97657212]
[1750908098886,39.56,146.81,146.76,3.33928172]
[1750908099590,39.56,146.81,146.75,3.33928172]
[1750908100281,39.56,146.81,146.75,11.62335384]
[1750908100484,6.8086,146.8,146.75,18.43385384]
[1750908100685,6.8086,146.8,146.75,10.14978172]
[1750908101184,39.56,146.81,146.74,6.8109]
[1750908101385,39.56,146.81,146.73,3.33928172]
[1750908101692,3.33928172,146.8,146.73,3.33928172]
[1750908101896,6.8095,146.78,146.73,10.15068172]
[1750908103192,6.8097,146.77,146.73,10.15068172]
[1750908104690,6.8101,146.76,146.72,137.97657212]
[1750908104996,39.56,146.81,146.74,8.28407212]
[1750908105192,39.56,146.81,146.75,3.33928172]
[1750908105393,39.56,146.81,146.75,11.62335384]
[1750908105791,6.8083,146.8,146.75,18.43345384]
[1750908106197,6.8083,146.8,146.75,11.62335384]
[1750908106393,46.3678,146.81,146.75,136.62335384]
[1750908106599,46.3678,146.81,146.76,11.62335384]
[1750908106600,39.56,146.81,146.76,11.62335384]
[1750908106799,39.56,146.81,146.76,3.33928172]
[1750908107099,6.8086,146.8,146.76,3.33928172]
[1750908107296,39.56,146.81,146.75,8.28407212]
[1750908107600,39.56,146.81,146.74,11.62335384]
[1750908108314,39.56,146.81,146.72,51.60610819]
[1750908108315,3.33928172,146.8,146.73,8.28407212]
[1750908108601,3.33928172,146.8,146.7,129.5659]
[1750908108602,3.33928172,146.76,146.7,4.5659]
[1750908108897,3.33928172,146.74,146.69,10.64047212]
[1750908109100,3.33928172,146.74,146.69,2.3564]
[1750908109804,6.8123,146.72,146.69,2.3564]
[1750908110098,3.33928172,146.74,146.69,2.3564]
[1750908110292,44.75205131,146.75,146.69,2.3564]
[1750908110489,39.18,146.75,146.69,10.64047212]
[1750908110798,39.18,146.75,146.7,8.28407212]
[1750908110992,6.8104,146.76,146.72,8.28407212]
[1750908113005,6.8096,146.77,146.73,8.28407212]
[1750908113299,39.18,146.78,146.74,8.28407212]
[1750908113489,45.9896,146.78,146.74,8.28407212]
[1750908113693,39.18,146.78,146.74,8.28407212]
[1750908114088,588.4,146.8,146.74,8.28407212]
[1750908114292,6.8088,146.79,146.75,8.28407212]
[1750908115095,6.8093,146.78,146.75,8.28407212]
[1750908115810,6.8097,146.77,146.75,8.28407212]
[1750908117702,6.8101,146.76,146.75,8.28407212]
[1750908117895,5.57205131,146.8,146.73,8.28407212]
[1750908118091,5.57205131,146.78,146.72,8.28407212]
[1750908118304,39.18,146.77,146.72,8.28407212]
[1750908118602,6.8114,146.73,146.7,8.28407212]
[1750908118795,6.8114,146.73,146.69,41.5364]
[1750908118796,39.18,146.77,146.71,8.28407212]
[1750908119000,6.811,146.74,146.71,8.28407212]
[1750908119388,39.18,146.77,146.71,8.28407212]
[1750908119699,6.8109,146.75,146.71,8.28407212]
[1750908120600,6.8111,146.74,146.71,8.28407212]
[1750908122297,6.8114,146.73,146.71,8.28407212]
[1750908122502,5.57205131,146.76,146.71,8.28407212]
[1750908122799,6.8119,146.72,146.71,8.28407212]
[1750908123015,5.57205131,146.76,146.7,8.28407212]
[1750908123199,39.18,146.77,146.7,8.28407212]
[1750908123405,6.8115,146.73,146.71,8.28407212]
[1750908124502,44.75205131,146.77,146.69,14.78250819]
[1750908124503,6.8119,146.72,146.7,8.28407212]
[1750908125206,6.8124,146.71,146.7,8.28407212]
[1750908125708,6.8124,146.71,146.67,148.69840819]
[1750908125709,6.8124,146.71,146.69,8.28407212]
[1750908126006,10.34855131,146.8,146.69,8.28407212]
[1750908126007,39.18,146.73,146.69,8.28407212]
[1750908126205,39.18,146.74,146.69,8.28407212]
[1750908126601,6.8122,146.72,146.69,8.28407212]
[1750908127707,6.8124,146.71,146.69,8.28407212]
[1750908128308,6.8128,146.7,146.69,8.28407212]
[1750908128511,5.57205131,146.73,146.67,8.28407212]
[1750908128712,7.95405131,146.73,146.67,8.28407212]
[1750908129310,6.8138,146.68,146.67,8.28407212]
[1750908129508,39.18,146.69,146.66,8.28407212]
[1750908130206,6.8139,146.68,146.65,8.28407212]
[1750908130406,6.8139,146.68,146.64,12.42610819]
[1750908130407,6.8139,146.68,146.64,8.28407212]
[1750908130714,38.9,146.72,146.66,8.28407212]
[1750908131011,38.9,146.72,146.67,8.28407212]
[1750908131313,6.8125,146.71,146.67,8.28407212]
[1750908132014,38.9,146.72,146.67,8.28407212]
[1750908132015,38.9,146.72,146.68,6.8137]
[1750908132309,38.9,146.72,146.67,8.28407212]
[1750908132611,42.24136395,146.79,146.7,15.76747214]
[1750908132801,38.9,146.78,146.72,8.30643953]
[1750908133302,6.8109,146.75,146.72,8.30643953]
[1750908133500,3.3421544,146.76,146.71,8.30643953]
[1750908133705,3.3421544,146.76,146.69,8.30643953]
[1750908134004,3.3421544,146.76,146.7,8.30643953]
[1750908134208,5.57049518,146.77,146.7,8.30643953]
[1750908134402,5.57049518,146.77,146.69,8.30643953]
[1750908135613,6.8118,146.73,146.69,8.30643953]
[1750908136214,6.8119,146.72,146.69,8.30643953]
[1750908136809,6.8116,146.73,146.69,8.30643953]
[1750908137815,6.8116,146.73,146.71,6.23475011]
[1750908138912,6.8119,146.72,146.71,6.23475011]
[1750908139610,38.9,146.74,146.7,6.23475011]
[1750908139611,6.8124,146.71,146.7,6.23475011]
[1750908141215,6.8124,146.71,146.69,6.23475011]
[1750908141419,6.8124,146.71,146.7,6.23475011]
[1750908141616,6.8121,146.72,146.7,6.23475011]
[1750908143016,38.9,146.74,146.7,6.23475011]
[1750908143017,6.8124,146.71,146.7,6.23475011]
[1750908143207,6.8124,146.71,146.69,6.23475011]
[1750908145616,6.8124,146.71,146.7,6.23475011]
[1750908146213,38.9,146.74,146.69,8.30643953]
[1750908146428,38.9,146.74,146.71,6.23278419]
[1750908147210,38.9,146.74,146.67,12.42610819]
[1750908147211,6.8123,146.72,146.7,6.23278419]
[1750908147411,38.9,146.74,146.7,6.23278419]
[1750908147822,6.8124,146.71,146.7,6.23278419]
[1750908149818,6.8128,146.7,146.69,6.23278419]
[1750908151423,6.8128,146.7,146.68,8.30643953]
[1750908154833,6.8124,146.71,146.68,8.30643953]
[1750908155025,6.8124,146.71,146.7,6.24327447]
[1750908156440,6.8118,146.73,146.69,8.30643953]
[1750908156630,38.9,146.78,146.71,8.30643953]
[1750908156928,3.34213032,146.88,146.71,8.30643953]
[1750908156929,38.9,146.82,146.77,6.23361633]
[1750908157136,38.9,146.82,146.78,6.23361633]
[1750908157435,42.24213032,146.82,146.77,6.23361633]
[1750908157734,3.34213032,146.78,146.72,8.30643953]
[1750908157931,3.34213032,146.76,146.72,8.30643953]
[1750908158230,6.8114,146.73,146.7,8.30643953]
[1750908158731,6.8114,146.73,146.4,42.24213032]
[1750908158732,20.43,146.66,146.4,42.24213032]
[1750908158927,23.77213032,146.64,146.51,2.3413]
[1750908159130,3.34213032,146.58,146.51,2.3413]
[1750908159328,38.9,146.57,146.51,2.3413]
[1750908159522,6.8197,146.56,146.51,2.3413]
[1750908159728,38.9,146.57,146.51,5.68343032]
[1750908160125,42.24213032,146.61,146.53,3.34213032]
[1750908160332,38.9,146.61,146.53,5.5809979]
[1750908160737,6.8175,146.6,146.53,5.5809979]
[1750908161131,6.8175,146.6,146.51,48.0629]
[1750908161429,230.10110516,146.59,146.42,5.5809979]
[1750908161638,230.10110516,146.59,146.43,4.6986]
[1750908161639,5.5809979,146.48,146.43,4.6986]
[1750908161934,5.5809979,146.48,146.37,2.28]
[1750908162137,5.5809979,146.47,146.37,6.9786]
[1750908162636,5.5809979,146.47,146.38,6.8277]
[1750908163154,38.84,146.49,146.39,6.8271]
[1750908163333,38.86,146.52,146.43,5.5809979]
[1750908163840,38.86,146.52,146.44,2.2251]
[1750908164046,38.86,146.52,146.44,4.6564]
[1750908164334,38.86,146.52,146.44,11.4811]
[1750908165045,12.4032979,146.5,146.4,6.8264]
[1750908165226,5.5809979,146.48,146.4,6.8264]
[1750908165734,38.86,146.52,146.39,111.0973979]
[1750908165938,5.5809979,146.51,146.41,5.5809979]
[1750908166335,5.5809979,146.51,146.44,6.8245]
[1750908166639,5.5809979,146.51,146.43,38.86]
[1750908166938,5.5809979,146.49,146.4,38.86]
[1750908167242,38.86,146.48,146.4,38.86]
[1750908167430,38.86,146.48,146.42,6.8258]
[1750908167629,38.86,146.48,146.4,38.86]
[1750908167827,38.86,146.48,146.4,44.4409979]
[1750908168035,38.86,146.51,146.43,5.58883924]
[1750908168640,38.86,146.51,146.46,6.824]
[1750908168936,5.58944523,146.49,146.4,38.88]
[1750908169630,45.6817,146.51,146.4,38.88]
[1750908169934,38.86,146.51,146.43,5.59142311]
[1750908170424,38.86,146.51,146.39,66.6564]
[1750908170628,5.58843919,146.5,146.41,5.58843919]
[1750908170827,38.86,146.51,146.44,6.8248]
[1750908171436,38.86,146.51,146.46,6.824]
[1750908171633,38.86,146.51,146.43,5.59011552]
[1750908171834,40.5,146.53,146.44,40.5]
[1750908172042,47.3209,146.53,146.44,40.5]
[1750908173639,47.3209,146.53,146.46,6.824]
[1750908174933,40.5,146.48,146.39,5.58994998]
[1750908175138,40.5,146.48,146.41,5.58994998]
[1750908175438,5.58994998,146.5,146.44,6.8249]
[1750908176052,12.41214998,146.5,146.43,6.8253]
[1750908176556,12.41214998,146.5,146.42,6.8258]
[1750908176557,6.8235,146.48,146.42,6.8258]
[1750908176852,5.58994998,146.5,146.41,40.5]
[1750908177253,6.8231,146.48,146.43,6.8253]
[1750908177451,5.58994998,146.5,146.43,6.8253]
[1750908178654,6.8232,146.48,146.43,6.8253]
[1750908178847,46.08994998,146.5,146.43,6.8253]
[1750908179348,6.8228,146.49,146.43,6.8253]
[1750908180062,52.91273103,146.5,146.44,6.8247]
[1750908180448,6.8217,146.51,146.45,6.8243]
[1750908180655,47.3217,146.51,146.42,5.59053103]
[1750908180958,40.5,146.51,146.42,5.59053103]
[1750908181361,40.5,146.51,146.46,6.8236]
[1750908182056,40.5,146.51,146.47,6.8234]
[1750908183860,6.8227,146.49,146.45,4.6822]
[1750908184162,6.8227,146.49,146.41,46.09053103]
[1750908184360,6.8227,146.49,146.44,6.8248]
[1750908184654,5.59053103,146.48,146.37,7.87053103]
[1750908184861,40.5,146.47,146.41,6.826]
[1750908185360,6.8244,146.46,146.41,6.826]
[1750908185664,6.8244,146.46,146.4,6.8268]
[1750908185665,5.59053103,146.46,146.4,6.8268]
[1750908185862,40.5,146.47,146.38,4.5874]
[1750908186552,46.09458348,146.47,146.38,4.5874]
[1750908187359,6.8241,146.46,146.41,6.826]
[1750908188654,40.5,146.48,146.39,5.5927889]
[1750908188856,46.0927889,146.49,146.4,40.5]
[1750908189363,40.5,146.49,146.41,5.5927889]
[1750908190564,6.8231,146.48,146.43,6.8251]
[1750908192066,6.8231,146.48,146.44,6.8249]
[1750908192767,47.3227,146.49,146.44,6.8249]
[1750908192965,40.5,146.49,146.45,6.8244]
[1750908194067,5.5927889,146.51,146.42,5.5927889]
[1750908194865,10.34753479,146.51,146.41,5.5927889]
[1750908195261,6.8234,146.48,146.4,108.0927889]
[1750908195760,5.5927889,146.47,146.4,40.5]
[1750908195962,12.4166889,146.47,146.4,40.5]
[1750908196166,5.5927889,146.47,146.4,40.5]
[1750908196669,6.824,146.46,146.41,6.8262]
[1750908197269,6.8245,146.45,146.4,47.3267]
[1750908197470,5.5927889,146.47,146.4,40.5]
[1750908198070,6.8244,146.46,146.41,6.8263]
[1750908198268,6.8244,146.46,146.38,10.1801889]
[1750908198469,6.8244,146.46,146.38,4.5874]
[1750908198660,6.8244,146.46,146.38,10.1801889]
[1750908198860,6.8244,146.46,146.4,6.8267]
[1750908199061,6.8244,146.46,146.38,72.1801889]
[1750908199261,46.1127889,146.48,146.38,72.1801889]
[1750908199666,52.9362889,146.48,146.38,72.1801889]
[1750908199972,52.9362889,146.48,146.42,6.8255]
[1750908200164,52.9362889,146.48,146.38,72.1801889]
[1750908200363,52.9362889,146.48,146.4,5.5927889]
[1750908200973,52.9362889,146.48,146.42,6.8255]
[1750908201274,47.3435,146.48,146.4,5.5927889]
[1750908201675,47.3435,146.48,146.39,5.5927889]
[1750908201862,6.8235,146.47,146.39,5.5927889]
[1750908202176,6.8235,146.47,146.42,6.8255]
[1750908202379,40.52,146.48,146.39,8.22307125]
[1750908202578,40.52,146.48,146.38,18.40326015]
[1750908202779,5.5927889,146.47,146.38,4.5874]
[1750908203178,6.8245,146.45,146.39,15.04997125]
[1750908203476,5.5927889,146.45,146.38,12.81047125]
[1750908203974,6.8257,146.43,146.38,19.63777125]
[1750908204281,5.5927889,146.45,146.39,8.22307125]
[1750908204879,40.52,146.48,146.41,8.22307125]
[1750908205079,40.52,146.48,146.42,8.22307125]
[1750908205273,40.52,146.48,146.41,8.22307125]
[1750908206179,39.68,146.48,146.42,8.22307125]
[1750908206374,39.68,146.48,146.44,8.22307125]
[1750908206979,39.68,146.48,146.45,6.824]
[1750908207281,6.8222,146.5,146.45,6.824]
[1750908207777,45.2727889,146.51,146.46,8.22307125]
[1750908207974,39.68,146.51,146.47,8.22307125]
[1750908208374,46.502,146.51,146.47,8.22307125]
[1750908208581,46.502,146.51,146.46,15.04697125]
[1750908209479,5.5927889,146.5,146.46,8.22307125]
[1750908209774,2.4928636,146.49,146.44,8.22307125]
[1750908209979,11.65204861,146.47,146.44,8.22307125]
[1750908210183,11.6437863,146.46,146.42,8.22307125]
[1750908210378,7.32131221,146.45,146.42,8.22307125]
[1750908210579,5.5927889,146.48,146.42,8.22307125]
[1750908210779,6.8241,146.46,146.42,8.22307125]
[1750908210981,7.37992886,146.45,146.42,8.22307125]
[1750908211275,4.87246123,146.44,146.42,8.22307125]
[1750908211474,4.3418376,146.46,146.42,8.22307125]
[1750908211676,7.407411,146.45,146.42,8.22307125]
[1750908211878,7.407411,146.44,146.41,8.22307125]
[1750908212079,4.34184995,146.46,146.41,8.22307125]
[1750908212281,7.40733604,146.45,146.41,8.22307125]
[1750908212480,6.8241,146.46,146.42,8.22307125]
[1750908212677,7.40613799,146.45,146.42,8.22307125]
[1750908212878,6.8241,146.46,146.42,8.22307125]
[1750908213084,7.40680674,146.45,146.42,8.22307125]
[1750908213286,39.68,146.47,146.43,6.8254]
[1750908213287,46.5036,146.47,146.43,6.8254]
[1750908213577,7.40604551,146.46,146.43,8.22307125]
[1750908213779,39.68,146.47,146.43,8.22307125]
[1750908213981,14.23071971,146.46,146.42,8.22307125]
[1750908214182,7.40631971,146.45,146.42,8.22307125]
[1750908214380,6.8244,146.46,146.42,8.22307125]
[1750908214581,2.50729994,146.45,146.42,8.22307125]